[Event "Early-Titled-Tuesday-Blitz-October-03-2023"]
[Site "Chess.com"]
[Date "2023.10.03"]
[Round "11"]
[White "rikchessmx"]
[Black "DarZay"]
[Result "1-0"]
[WhiteElo "2337"]
[BlackElo "2213"]
[TimeControl "180+1"]
[EndTime "10:06:52 PDT"]
[Termination "rikchessmx won on time"]

1. e4 {[%clk 0:03:00.9]} 1... c5 {[%clk 0:02:57.1]} 2. Nf3 {[%clk 0:03:00.3]}
2... Nc6 {[%clk 0:02:57]} 3. d4 {[%clk 0:03:01.1]} 3... cxd4 {[%clk 0:02:57.3]}
4. Nxd4 {[%clk 0:03:02]} 4... Nf6 {[%clk 0:02:57.6]} 5. Nc3 {[%clk 0:03:01.7]}
5... d6 {[%clk 0:02:57.9]} 6. f4 {[%clk 0:02:59.3]} 6... Bg4 {[%clk 0:02:50.5]}
7. Qd3 {[%clk 0:02:57.8]} 7... e5 {[%clk 0:02:45.5]} 8. Nxc6 {[%clk 0:02:57.1]}
8... bxc6 {[%clk 0:02:45.3]} 9. f5 {[%clk 0:02:57.5]} 9... d5 {[%clk 0:02:40.7]}
10. h3 {[%clk 0:02:52.6]} 10... d4 {[%clk 0:02:26.7]} 11. Nb1 {[%clk 0:02:46.1]}
11... Bb4+ {[%clk 0:02:25.6]} 12. Bd2 {[%clk 0:02:44.3]} 12... Bxd2+ {[%clk
0:02:21.4]} 13. Nxd2 {[%clk 0:02:43.4]} 13... Bxf5 {[%clk 0:02:16.3]} 14. exf5
{[%clk 0:02:42.6]} 14... e4 {[%clk 0:02:16.6]} 15. Qc4 {[%clk 0:02:36.7]} 15...
O-O {[%clk 0:02:13.8]} 16. g4 {[%clk 0:02:34.4]} 16... e3 {[%clk 0:02:11.2]} 17.
Nf3 {[%clk 0:02:31.2]} 17... Qa5+ {[%clk 0:02:02.7]} 18. c3 {[%clk 0:02:23.8]}
18... c5 {[%clk 0:01:56.4]} 19. Bg2 {[%clk 0:02:15.8]} 19... Ne4 {[%clk
0:01:49.9]} 20. O-O {[%clk 0:02:13]} 20... Rad8 {[%clk 0:01:33.2]} 21. b4 {[%clk
0:02:11.5]} 21... Qa3 {[%clk 0:01:30.2]} 22. cxd4 {[%clk 0:02:07.2]} 22... cxd4
{[%clk 0:01:28]} 23. Qb3 {[%clk 0:01:52.2]} 23... Qxb3 {[%clk 0:01:25.6]} 24.
axb3 {[%clk 0:01:51.9]} 24... e2 {[%clk 0:01:19.9]} 25. Rfe1 {[%clk 0:01:46.5]}
25... d3 {[%clk 0:01:20.3]} 26. Ra2 {[%clk 0:01:45.7]} 26... d2 {[%clk
0:01:00.8]} 27. Nxd2 {[%clk 0:01:45.6]} 27... Rxd2 {[%clk 0:00:53.1]} 28. Rxe2
{[%clk 0:01:42.9]} 28... Rd1+ {[%clk 0:00:46.8]} 29. Kh2 {[%clk 0:01:42.4]}
29... Nc3 {[%clk 0:00:46.8]} 30. Red2 {[%clk 0:01:41.3]} 30... Nxa2 {[%clk
0:00:43.1]} 31. Rxd1 {[%clk 0:01:40.7]} 31... Nxb4 {[%clk 0:00:43.3]} 32. Rd7
{[%clk 0:01:40.2]} 32... a6 {[%clk 0:00:36.6]} 33. Rb7 {[%clk 0:01:38.7]} 33...
Nd3 {[%clk 0:00:33.7]} 34. Rb6 {[%clk 0:01:35.9]} 34... h5 {[%clk 0:00:30.6]}
35. Rxa6 {[%clk 0:01:30.3]} 35... hxg4 {[%clk 0:00:30]} 36. hxg4 {[%clk
0:01:30.4]} 36... Re8 {[%clk 0:00:27.9]} 37. Bd5 {[%clk 0:01:24.6]} 37... Re2+
{[%clk 0:00:19.2]} 38. Kg3 {[%clk 0:01:23.6]} 38... Re3+ {[%clk 0:00:19.4]} 39.
Kh4 {[%clk 0:01:20.8]} 39... Nf4 {[%clk 0:00:14.7]} 40. Bc4 {[%clk 0:01:12.4]}
40... Rh3+ {[%clk 0:00:02.6]} 41. Kg5 {[%clk 0:01:12]} 1-0

[Event "Early-Titled-Tuesday-Blitz-October-03-2023"]
[Site "Chess.com"]
[Date "2023.10.03"]
[Round "11"]
[White "Witty_Alien"]
[Black "FMVolodymyrSakun"]
[Result "0-1"]
[WhiteElo "2282"]
[BlackElo "2621"]
[TimeControl "180+1"]
[EndTime "10:07:00 PDT"]
[Termination "FMVolodymyrSakun won on time"]

1. e4 {[%clk 0:03:00.9]} 1... c5 {[%clk 0:02:59.9]} 2. Nf3 {[%clk 0:03:00.5]}
2... g6 {[%clk 0:03:00.4]} 3. h4 {[%clk 0:03:00.2]} 3... d5 {[%clk 0:02:53.3]}
4. exd5 {[%clk 0:02:58.1]} 4... Qxd5 {[%clk 0:02:53.3]} 5. h5 {[%clk 0:02:57.8]}
5... gxh5 {[%clk 0:02:52.7]} 6. Nc3 {[%clk 0:02:57.3]} 6... Qe6+ {[%clk
0:02:46.9]} 7. Be2 {[%clk 0:02:50.5]} 7... Nf6 {[%clk 0:02:46.2]} 8. Ng5 {[%clk
0:02:44.9]} 8... Qe5 {[%clk 0:02:34.4]} 9. d4 {[%clk 0:02:40.5]} 9... cxd4
{[%clk 0:02:30.6]} 10. Nb5 {[%clk 0:02:36.3]} 10... Nc6 {[%clk 0:02:20.3]} 11.
f4 {[%clk 0:01:49.3]} 11... Qb8 {[%clk 0:02:19.9]} 12. Rxh5 {[%clk 0:01:41.5]}
12... h6 {[%clk 0:02:09.6]} 13. Nxd4 {[%clk 0:00:26.7]} 13... Nxh5 {[%clk
0:02:02.2]} 14. Nxf7 {[%clk 0:00:24.8]} 14... Nxf4 {[%clk 0:01:34.1]} 15. Nxh8
{[%clk 0:00:15.1]} 15... Nxe2 {[%clk 0:01:32.3]} 16. Nxc6 {[%clk 0:00:04.8]}
16... Qg3+ {[%clk 0:01:30.6]} 17. Kf1 {[%clk 0:00:02.5]} 17... Bg4 {[%clk
0:01:08.5]} 18. Qd3 {[%clk 0:00:02.6]} 18... bxc6 {[%clk 0:01:05]} 19. Qg6+
{[%clk 0:00:02.5]} 19... Kd7 {[%clk 0:01:03.4]} 20. Nf7 {[%clk 0:00:02.5]} 20...
Qh2 {[%clk 0:00:42.6]} 21. Qxg4+ {[%clk 0:00:02.4]} 21... Ke8 {[%clk 0:00:40.1]}
22. Nd6+ {[%clk 0:00:01.6]} 22... exd6 {[%clk 0:00:38.7]} 23. Qxe2+ {[%clk
0:00:02.2]} 23... Be7 {[%clk 0:00:35.9]} 24. Qf3 {[%clk 0:00:01.6]} 24... Kd7
{[%clk 0:00:33.5]} 25. Be3 {[%clk 0:00:01.8]} 25... Rf8 {[%clk 0:00:32.2]} 26.
Bf4 {[%clk 0:00:01.6]} 26... Rxf4 {[%clk 0:00:31.6]} 0-1

[Event "Early-Titled-Tuesday-Blitz-October-03-2023"]
[Site "Chess.com"]
[Date "2023.10.03"]
[Round "11"]
[White "Sethu0025"]
[Black "Markov_Mikhail"]
[Result "1-0"]
[WhiteElo "2869"]
[BlackElo "2737"]
[TimeControl "180+1"]
[EndTime "10:07:05 PDT"]
[Termination "Sethu0025 won by resignation"]

1. d4 {[%clk 0:03:00.9]} 1... Nf6 {[%clk 0:02:57.7]} 2. c4 {[%clk 0:03:01.3]}
2... e6 {[%clk 0:02:58.3]} 3. Nf3 {[%clk 0:03:01.2]} 3... d5 {[%clk 0:02:58.9]}
4. Nc3 {[%clk 0:03:00.9]} 4... Be7 {[%clk 0:02:58.1]} 5. Bf4 {[%clk 0:02:59.8]}
5... O-O {[%clk 0:02:57.8]} 6. a3 {[%clk 0:03:00.2]} 6... Nbd7 {[%clk 0:02:52]}
7. Nb5 {[%clk 0:02:59.7]} 7... c6 {[%clk 0:02:47.6]} 8. Bc7 {[%clk 0:02:46.9]}
8... Qe8 {[%clk 0:02:10.9]} 9. Nd6 {[%clk 0:02:46.5]} 9... Bxd6 {[%clk
0:02:11.6]} 10. Bxd6 {[%clk 0:02:47.4]} 10... dxc4 {[%clk 0:02:11.4]} 11. e3
{[%clk 0:02:47.2]} 11... b5 {[%clk 0:02:10.9]} 12. Qc2 {[%clk 0:02:44]} 12...
Nb6 {[%clk 0:02:08.6]} 13. Be2 {[%clk 0:02:38]} 13... a5 {[%clk 0:02:01.6]} 14.
O-O {[%clk 0:02:37.3]} 14... a4 {[%clk 0:02:02.1]} 15. Ne5 {[%clk 0:02:35.5]}
15... Bb7 {[%clk 0:02:01.8]} 16. Bc5 {[%clk 0:02:24.1]} 16... Nbd7 {[%clk
0:01:58.8]} 17. Bxf8 {[%clk 0:02:20.1]} 17... Nxf8 {[%clk 0:01:48.4]} 18. f4
{[%clk 0:02:12.4]} 18... Nd5 {[%clk 0:01:44.9]} 19. Qc1 {[%clk 0:01:55.6]} 19...
f6 {[%clk 0:01:40.6]} 20. Ng4 {[%clk 0:01:47.7]} 20... Rd8 {[%clk 0:01:36.5]}
21. e4 {[%clk 0:01:45.9]} 21... Nc7 {[%clk 0:01:35.5]} 22. Qe3 {[%clk
0:01:42.9]} 22... Nd7 {[%clk 0:01:30.5]} 23. Rad1 {[%clk 0:01:41.7]} 23... Qe7
{[%clk 0:01:26.9]} 24. Bf3 {[%clk 0:01:36.3]} 24... Re8 {[%clk 0:01:22.6]} 25.
Nf2 {[%clk 0:01:35.9]} 25... e5 {[%clk 0:01:06.3]} 26. dxe5 {[%clk 0:01:32.1]}
26... fxe5 {[%clk 0:01:07.2]} 27. f5 {[%clk 0:01:32.5]} 27... Qc5 {[%clk
0:01:01.4]} 28. Qc1 {[%clk 0:01:28]} 28... Nf6 {[%clk 0:00:57.9]} 29. Kh1 {[%clk
0:01:27.3]} 29... h6 {[%clk 0:00:52.6]} 30. Ng4 {[%clk 0:01:23.8]} 30... Rf8
{[%clk 0:00:28.2]} 31. Nxf6+ {[%clk 0:01:20.4]} 31... Rxf6 {[%clk 0:00:29.1]}
32. Rd7 {[%clk 0:01:16.8]} 32... Qb6 {[%clk 0:00:29.7]} 33. Qc3 {[%clk
0:01:10.8]} 33... Ne8 {[%clk 0:00:16.5]} 34. Qxe5 {[%clk 0:01:08.8]} 34... Rf8
{[%clk 0:00:17.3]} 35. Qe6+ {[%clk 0:00:54.8]} 35... Kh8 {[%clk 0:00:14.9]} 36.
Qe7 {[%clk 0:00:54.8]} 36... Qg1+ {[%clk 0:00:07.8]} 1-0

[Event "Early-Titled-Tuesday-Blitz-October-03-2023"]
[Site "Chess.com"]
[Date "2023.10.03"]
[Round "11"]
[White "arminmusovic"]
[Black "FM_Kappeler"]
[Result "1-0"]
[WhiteElo "2494"]
[BlackElo "2339"]
[TimeControl "180+1"]
[EndTime "10:07:11 PDT"]
[Termination "arminmusovic won by checkmate"]

1. a3 {[%clk 0:03:00.9]} 1... d5 {[%clk 0:02:56.2]} 2. Nc3 {[%clk 0:03:00.3]}
2... d4 {[%clk 0:02:55.4]} 3. Ne4 {[%clk 0:03:00.2]} 3... e5 {[%clk 0:02:52.8]}
4. Ng3 {[%clk 0:03:00.2]} 4... Nf6 {[%clk 0:02:51.5]} 5. e4 {[%clk 0:02:59]}
5... Nc6 {[%clk 0:02:35.3]} 6. Bb5 {[%clk 0:02:58]} 6... Bd7 {[%clk 0:02:27.2]}
7. Bxc6 {[%clk 0:02:58.9]} 7... Bxc6 {[%clk 0:02:26.9]} 8. d3 {[%clk 0:02:59.4]}
8... g6 {[%clk 0:02:21]} 9. N1e2 {[%clk 0:02:57.8]} 9... Bg7 {[%clk 0:02:21]}
10. O-O {[%clk 0:02:57.6]} 10... O-O {[%clk 0:02:19.1]} 11. h3 {[%clk
0:02:58.1]} 11... Ne8 {[%clk 0:02:03.5]} 12. f4 {[%clk 0:02:54]} 12... f5 {[%clk
0:01:43.5]} 13. exf5 {[%clk 0:02:51]} 13... gxf5 {[%clk 0:01:38.8]} 14. fxe5
{[%clk 0:02:49.5]} 14... Qd5 {[%clk 0:01:33.3]} 15. Nf4 {[%clk 0:02:45.3]} 15...
Qxe5 {[%clk 0:01:33.2]} 16. Re1 {[%clk 0:02:36.7]} 16... Qf6 {[%clk 0:01:24]}
17. Re6 {[%clk 0:02:14.1]} 17... Qh4 {[%clk 0:01:22.9]} 18. Qe1 {[%clk
0:02:02.9]} 18... Nd6 {[%clk 0:01:00.7]} 19. Bd2 {[%clk 0:01:48.1]} 19... Rae8
{[%clk 0:00:59.9]} 20. Qe2 {[%clk 0:01:47.9]} 20... Qxg3 {[%clk 0:00:55.2]} 21.
Nh5 {[%clk 0:01:41.5]} 21... Qh4 {[%clk 0:00:52.5]} 22. Bf4 {[%clk 0:01:24.1]}
22... Rxe6 {[%clk 0:00:38.1]} 23. Qxe6+ {[%clk 0:01:25]} 23... Kh8 {[%clk
0:00:38.1]} 24. Nxg7 {[%clk 0:00:59.8]} 24... Qxf4 {[%clk 0:00:36.9]} 25. Nh5
{[%clk 0:01:00.2]} 25... Qe3+ {[%clk 0:00:21.1]} 26. Qxe3 {[%clk 0:00:59.3]}
26... dxe3 {[%clk 0:00:21.5]} 27. Nf4 {[%clk 0:00:58.3]} 27... Rg8 {[%clk
0:00:14.3]} 28. Re1 {[%clk 0:00:58.4]} 28... Rg3 {[%clk 0:00:12.8]} 29. Kh2
{[%clk 0:00:55.7]} 29... Rg8 {[%clk 0:00:12.4]} 30. Rxe3 {[%clk 0:00:56.2]}
30... Re8 {[%clk 0:00:12.2]} 31. Rg3 {[%clk 0:00:49.3]} 31... Rg8 {[%clk
0:00:10.6]} 32. Re3 {[%clk 0:00:49.1]} 32... Re8 {[%clk 0:00:11]} 33. Rg3 {[%clk
0:00:49.5]} 33... Re1 {[%clk 0:00:11.1]} 34. Nh5 {[%clk 0:00:47.7]} 34... Rc1
{[%clk 0:00:11]} 35. Nf6 {[%clk 0:00:46.5]} 35... Bd5 {[%clk 0:00:03.7]} 36.
Nxd5 {[%clk 0:00:46.4]} 36... h5 {[%clk 0:00:02.9]} 37. Nf6 {[%clk 0:00:45.6]}
37... h4 {[%clk 0:00:03]} 38. Rg8# {[%clk 0:00:45.7]} 1-0

[Event "Early-Titled-Tuesday-Blitz-October-03-2023"]
[Site "Chess.com"]
[Date "2023.10.03"]
[Round "11"]
[White "Mystery2007"]
[Black "DoctorCheckyll"]
[Result "1-0"]
[WhiteElo "2462"]
[BlackElo "2303"]
[TimeControl "180+1"]
[EndTime "10:07:13 PDT"]
[Termination "Mystery2007 won on time"]

1. Nf3 {[%clk 0:03:00.9]} 1... d5 {[%clk 0:02:02.7]} 2. c4 {[%clk 0:02:59.8]}
2... c6 {[%clk 0:02:02.2]} 3. b3 {[%clk 0:02:59.7]} 3... Nf6 {[%clk 0:02:02.3]}
4. Bb2 {[%clk 0:03:00.3]} 4... Bf5 {[%clk 0:02:00.2]} 5. g3 {[%clk 0:03:00.4]}
5... e6 {[%clk 0:02:00.2]} 6. Bg2 {[%clk 0:03:01]} 6... h6 {[%clk 0:02:00]} 7.
O-O {[%clk 0:03:01.7]} 7... Nbd7 {[%clk 0:01:59.6]} 8. d3 {[%clk 0:03:02.4]}
8... Bh7 {[%clk 0:01:54.2]} 9. Nbd2 {[%clk 0:03:02.8]} 9... Be7 {[%clk
0:01:54.1]} 10. Re1 {[%clk 0:03:02.9]} 10... O-O {[%clk 0:01:54.4]} 11. Qc2
{[%clk 0:03:02]} 11... Rc8 {[%clk 0:01:53.2]} 12. Rac1 {[%clk 0:03:00.8]} 12...
Ne8 {[%clk 0:01:52.9]} 13. Qb1 {[%clk 0:03:00.4]} 13... Bf6 {[%clk 0:01:53.2]}
14. Qa1 {[%clk 0:02:56.3]} 14... Bxb2 {[%clk 0:01:52.7]} 15. Qxb2 {[%clk
0:02:57.2]} 15... a5 {[%clk 0:01:51.5]} 16. e4 {[%clk 0:02:51.5]} 16... dxe4
{[%clk 0:01:47.3]} 17. dxe4 {[%clk 0:02:51.1]} 17... Qc7 {[%clk 0:01:44.4]} 18.
e5 {[%clk 0:02:49.8]} 18... Nc5 {[%clk 0:01:41.2]} 19. Bf1 {[%clk 0:02:47.7]}
19... f6 {[%clk 0:01:25.6]} 20. Qd4 {[%clk 0:02:42.1]} 20... b6 {[%clk
0:01:23.4]} 21. h4 {[%clk 0:02:25.6]} 21... Rd8 {[%clk 0:01:23.1]} 22. Qe3
{[%clk 0:02:25.5]} 22... fxe5 {[%clk 0:01:16.6]} 23. Nxe5 {[%clk 0:02:25.4]}
23... Nf6 {[%clk 0:01:14.3]} 24. Ndf3 {[%clk 0:02:17.7]} 24... Nfe4 {[%clk
0:01:01.7]} 25. Rcd1 {[%clk 0:02:11.9]} 25... Rd6 {[%clk 0:00:48.3]} 26. Rxd6
{[%clk 0:02:07.6]} 26... Qxd6 {[%clk 0:00:48.6]} 27. Be2 {[%clk 0:01:49.4]}
27... Qc7 {[%clk 0:00:41.2]} 28. a3 {[%clk 0:01:41.2]} 28... Nd7 {[%clk
0:00:38.7]} 29. Nxd7 {[%clk 0:01:25.7]} 29... Qxd7 {[%clk 0:00:38.9]} 30. Bd3
{[%clk 0:01:22.3]} 30... Nf6 {[%clk 0:00:25.8]} 31. Ne5 {[%clk 0:01:15.5]} 31...
Qd6 {[%clk 0:00:20.7]} 32. Bxh7+ {[%clk 0:01:11]} 32... Kxh7 {[%clk 0:00:20.9]}
33. Qxb6 {[%clk 0:01:05.8]} 33... Nh5 {[%clk 0:00:13.3]} 34. Qxc6 {[%clk
0:01:01.7]} 34... Qd2 {[%clk 0:00:12.6]} 35. Qe4+ {[%clk 0:01:01.4]} 35... Rf5
{[%clk 0:00:11.3]} 36. Qe2 {[%clk 0:00:59.8]} 36... Qd4 {[%clk 0:00:07.1]} 37.
Kg2 {[%clk 0:00:47.8]} 37... Nf6 {[%clk 0:00:04.3]} 38. b4 {[%clk 0:00:41.4]}
1-0

[Event "Early-Titled-Tuesday-Blitz-October-03-2023"]
[Site "Chess.com"]
[Date "2023.10.03"]
[Round "11"]
[White "vugarrasulov"]
[Black "CSB7"]
[Result "1-0"]
[WhiteElo "2945"]
[BlackElo "2752"]
[TimeControl "180+1"]
[EndTime "10:07:14 PDT"]
[Termination "vugarrasulov won by checkmate"]

1. c4 {[%clk 0:03:00.9]} 1... c6 {[%clk 0:02:59.9]} 2. Nf3 {[%clk 0:02:59.4]}
2... d5 {[%clk 0:03:00.1]} 3. e3 {[%clk 0:03:00.3]} 3... Nf6 {[%clk 0:02:59.7]}
4. Nc3 {[%clk 0:03:00.9]} 4... e6 {[%clk 0:02:56.5]} 5. d4 {[%clk 0:03:00.8]}
5... Nbd7 {[%clk 0:02:54.3]} 6. Bd3 {[%clk 0:03:01.3]} 6... dxc4 {[%clk
0:02:50.7]} 7. Bxc4 {[%clk 0:03:02.2]} 7... b5 {[%clk 0:02:50.9]} 8. Bd3 {[%clk
0:03:02.8]} 8... Bd6 {[%clk 0:02:50.9]} 9. Nd2 {[%clk 0:03:00.2]} 9... O-O
{[%clk 0:02:27.2]} 10. O-O {[%clk 0:03:00.5]} 10... Bb7 {[%clk 0:02:15.1]} 11.
a4 {[%clk 0:02:59.1]} 11... a6 {[%clk 0:02:11.8]} 12. Qe2 {[%clk 0:02:52.4]}
12... Qb6 {[%clk 0:01:53.3]} 13. Rd1 {[%clk 0:02:37.4]} 13... Be7 {[%clk
0:01:44.4]} 14. b3 {[%clk 0:02:33.8]} 14... Rfd8 {[%clk 0:01:14.6]} 15. Bb2
{[%clk 0:02:33.5]} 15... h6 {[%clk 0:01:14.7]} 16. h3 {[%clk 0:02:32.7]} 16...
Rac8 {[%clk 0:01:13.8]} 17. axb5 {[%clk 0:02:30.2]} 17... cxb5 {[%clk
0:01:06.9]} 18. Nce4 {[%clk 0:02:29.4]} 18... Nd5 {[%clk 0:01:02.2]} 19. Nf3
{[%clk 0:02:21.1]} 19... Nb4 {[%clk 0:00:56.7]} 20. Bb1 {[%clk 0:02:21.2]} 20...
Bd5 {[%clk 0:00:56]} 21. Ned2 {[%clk 0:02:13]} 21... Nc2 {[%clk 0:00:55.2]} 22.
e4 {[%clk 0:02:00]} 22... Bb7 {[%clk 0:00:38.8]} 23. Ra2 {[%clk 0:01:58.8]}
23... Nb4 {[%clk 0:00:37.9]} 24. Ra1 {[%clk 0:01:59.5]} 24... Nc2 {[%clk
0:00:38]} 25. Bxc2 {[%clk 0:02:00.3]} 25... Rxc2 {[%clk 0:00:38.4]} 26. Rab1
{[%clk 0:02:01.2]} 26... Bb4 {[%clk 0:00:34.2]} 27. Qd3 {[%clk 0:02:00.4]} 27...
Rdc8 {[%clk 0:00:34.6]} 28. Nf1 {[%clk 0:01:58.4]} 28... Nf6 {[%clk 0:00:34.1]}
29. Ng3 {[%clk 0:01:49.1]} 29... a5 {[%clk 0:00:34]} 30. Nh2 {[%clk 0:01:37.9]}
30... Qa6 {[%clk 0:00:24.6]} 31. Nhf1 {[%clk 0:01:36.1]} 31... a4 {[%clk
0:00:18]} 32. Ne3 {[%clk 0:01:35.8]} 32... R2c7 {[%clk 0:00:18]} 33. d5 {[%clk
0:01:31.3]} 33... exd5 {[%clk 0:00:18.9]} 34. exd5 {[%clk 0:01:12.4]} 34... a3
{[%clk 0:00:19.2]} 35. Be5 {[%clk 0:01:10.5]} 35... Rd7 {[%clk 0:00:15.9]} 36.
d6 {[%clk 0:01:05.9]} 36... Ne8 {[%clk 0:00:13.1]} 37. Ngf5 {[%clk 0:01:05.7]}
37... Rcd8 {[%clk 0:00:09.3]} 38. Ng4 {[%clk 0:01:01.8]} 38... Bxd6 {[%clk
0:00:04.6]} 39. Nfxh6+ {[%clk 0:00:52.8]} 39... gxh6 {[%clk 0:00:03.9]} 40.
Nxh6+ {[%clk 0:00:53.2]} 40... Kf8 {[%clk 0:00:04.4]} 41. Qh7 {[%clk 0:00:49.3]}
41... Bxe5 {[%clk 0:00:04.5]} 42. Qg8+ {[%clk 0:00:49.5]} 42... Ke7 {[%clk
0:00:04.9]} 43. Qxf7# {[%clk 0:00:50.4]} 1-0

[Event "Early-Titled-Tuesday-Blitz-October-03-2023"]
[Site "Chess.com"]
[Date "2023.10.03"]
[Round "11"]
[White "tylityli"]
[Black "LuisFSiles"]
[Result "1/2-1/2"]
[WhiteElo "2345"]
[BlackElo "2276"]
[TimeControl "180+1"]
[EndTime "10:07:14 PDT"]
[Termination "Game drawn by repetition"]

1. d4 {[%clk 0:02:24.6]} 1... Nf6 {[%clk 0:02:59]} 2. c4 {[%clk 0:02:24.2]} 2...
g6 {[%clk 0:02:59.4]} 3. Nc3 {[%clk 0:02:23.7]} 3... d5 {[%clk 0:02:59.8]} 4.
cxd5 {[%clk 0:02:22.8]} 4... Nxd5 {[%clk 0:02:59.9]} 5. Bd2 {[%clk 0:02:22.8]}
5... Nb6 {[%clk 0:02:54.7]} 6. Nf3 {[%clk 0:02:18.8]} 6... Bg7 {[%clk
0:02:53.4]} 7. Bf4 {[%clk 0:02:17.8]} 7... O-O {[%clk 0:02:48.5]} 8. e3 {[%clk
0:02:17.7]} 8... c6 {[%clk 0:02:33.9]} 9. Be2 {[%clk 0:02:15.7]} 9... Nd5 {[%clk
0:02:32]} 10. Nxd5 {[%clk 0:02:14.6]} 10... cxd5 {[%clk 0:02:31.7]} 11. O-O
{[%clk 0:02:14.6]} 11... Nc6 {[%clk 0:02:31.8]} 12. a3 {[%clk 0:02:14]} 12...
Bg4 {[%clk 0:02:28.3]} 13. h3 {[%clk 0:02:13.9]} 13... Bxf3 {[%clk 0:02:28.5]}
14. Bxf3 {[%clk 0:02:14.8]} 14... e6 {[%clk 0:02:24.1]} 15. Rc1 {[%clk
0:02:14.6]} 15... Qb6 {[%clk 0:02:22.2]} 16. b4 {[%clk 0:02:14.2]} 16... Rfc8
{[%clk 0:02:20.6]} 17. Bd6 {[%clk 0:02:13.6]} 17... a5 {[%clk 0:02:19.8]} 18.
Bc5 {[%clk 0:02:13.1]} 18... Qd8 {[%clk 0:02:17]} 19. b5 {[%clk 0:02:11.4]}
19... Ne7 {[%clk 0:02:09.9]} 20. a4 {[%clk 0:02:08]} 20... b6 {[%clk 0:02:06.7]}
21. Ba3 {[%clk 0:02:07.5]} 21... Ra7 {[%clk 0:01:59]} 22. Qd2 {[%clk 0:02:05.5]}
22... Nf5 {[%clk 0:01:47.6]} 23. Rxc8 {[%clk 0:02:04]} 23... Qxc8 {[%clk
0:01:47.2]} 24. Rc1 {[%clk 0:02:03.9]} 24... Rc7 {[%clk 0:01:46.6]} 25. Rxc7
{[%clk 0:02:03.9]} 25... Qxc7 {[%clk 0:01:46.4]} 26. Qc1 {[%clk 0:02:04.8]}
26... Qxc1+ {[%clk 0:01:40.3]} 27. Bxc1 {[%clk 0:02:04.2]} 27... Bf8 {[%clk
0:01:34.7]} 28. Be2 {[%clk 0:02:02.2]} 28... Bb4 {[%clk 0:01:32.3]} 29. Kf1
{[%clk 0:02:02]} 29... Kf8 {[%clk 0:01:30.9]} 30. Bd3 {[%clk 0:01:56.4]} 30...
Nd6 {[%clk 0:01:30.2]} 31. Ke2 {[%clk 0:01:56.1]} 31... Ke7 {[%clk 0:01:27.9]}
32. Kd1 {[%clk 0:01:52.8]} 32... f6 {[%clk 0:01:25.1]} 33. Kc2 {[%clk
0:01:41.9]} 33... e5 {[%clk 0:01:23.1]} 34. Bd2 {[%clk 0:01:35.9]} 34... Bxd2
{[%clk 0:01:19.5]} 35. Kxd2 {[%clk 0:01:35.1]} 35... exd4 {[%clk 0:01:11.8]} 36.
exd4 {[%clk 0:01:34.8]} 36... f5 {[%clk 0:01:03.8]} 37. Kc3 {[%clk 0:01:24.3]}
37... Nf7 {[%clk 0:01:02.2]} 38. h4 {[%clk 0:01:20.1]} 38... Nd8 {[%clk
0:01:00.9]} 39. Be2 {[%clk 0:01:16.9]} 39... Ne6 {[%clk 0:00:47.6]} 40. g3
{[%clk 0:01:16]} 40... h6 {[%clk 0:00:44.8]} 41. Bf3 {[%clk 0:01:13]} 41... Kd6
{[%clk 0:00:44.7]} 42. Be2 {[%clk 0:01:12.9]} 42... g5 {[%clk 0:00:43.9]} 43.
hxg5 {[%clk 0:01:09.4]} 43... hxg5 {[%clk 0:00:43.5]} 44. Bd3 {[%clk 0:01:08.9]}
44... f4 {[%clk 0:00:43.5]} 45. Bf5 {[%clk 0:01:08.3]} 45... Ng7 {[%clk
0:00:30.4]} 46. Bg4 {[%clk 0:01:07.5]} 46... fxg3 {[%clk 0:00:20.8]} 47. fxg3
{[%clk 0:01:07.1]} 47... Ne6 {[%clk 0:00:19.7]} 48. Bxe6 {[%clk 0:01:05.9]}
48... Kxe6 {[%clk 0:00:19.7]} 49. g4 {[%clk 0:01:06.3]} 49... Kd6 {[%clk
0:00:19.4]} 50. Kd3 {[%clk 0:01:06.6]} 50... Ke6 {[%clk 0:00:19.8]} 51. Ke3
{[%clk 0:01:07]} 51... Kf6 {[%clk 0:00:20]} 52. Kf3 {[%clk 0:01:07.1]} 52... Ke6
{[%clk 0:00:20.4]} 53. Ke3 {[%clk 0:01:07.5]} 53... Kf6 {[%clk 0:00:20.9]} 54.
Kf3 {[%clk 0:01:07.9]} 54... Ke6 {[%clk 0:00:21.4]} 55. Ke3 {[%clk 0:01:08.1]}
1/2-1/2

[Event "Early-Titled-Tuesday-Blitz-October-03-2023"]
[Site "Chess.com"]
[Date "2023.10.03"]
[Round "11"]
[White "Sergey85Rodchenkov"]
[Black "Tsyhanchuk_Stanislav"]
[Result "0-1"]
[WhiteElo "2508"]
[BlackElo "2459"]
[TimeControl "180+1"]
[EndTime "10:07:17 PDT"]
[Termination "Tsyhanchuk_Stanislav won by resignation"]

1. e4 {[%clk 0:03:00.9]} 1... c5 {[%clk 0:02:59.8]} 2. Nf3 {[%clk 0:03:00.6]}
2... d6 {[%clk 0:02:58.3]} 3. d4 {[%clk 0:03:00.9]} 3... cxd4 {[%clk 0:02:59.2]}
4. Nxd4 {[%clk 0:03:00.4]} 4... Nf6 {[%clk 0:02:58.8]} 5. Nc3 {[%clk 0:03:00.9]}
5... a6 {[%clk 0:02:58.5]} 6. Be3 {[%clk 0:03:01.2]} 6... e5 {[%clk 0:02:57.5]}
7. Nb3 {[%clk 0:03:01.7]} 7... Be6 {[%clk 0:02:57.5]} 8. f3 {[%clk 0:03:01.5]}
8... Nbd7 {[%clk 0:02:57.6]} 9. Qd2 {[%clk 0:03:01.4]} 9... b5 {[%clk
0:02:58.1]} 10. Nd5 {[%clk 0:02:52.2]} 10... Nxd5 {[%clk 0:02:51.7]} 11. exd5
{[%clk 0:02:53.1]} 11... Bf5 {[%clk 0:02:51.8]} 12. a4 {[%clk 0:02:40.5]} 12...
bxa4 {[%clk 0:02:43.5]} 13. Na5 {[%clk 0:02:25.9]} 13... Nb6 {[%clk 0:02:23.8]}
14. Nc6 {[%clk 0:02:22.5]} 14... Qc7 {[%clk 0:02:23.8]} 15. c4 {[%clk
0:02:16.7]} 15... Be7 {[%clk 0:02:09.9]} 16. Qa5 {[%clk 0:02:08.1]} 16... Nxd5
{[%clk 0:01:38.3]} 17. cxd5 {[%clk 0:01:59.6]} 17... Qd7 {[%clk 0:01:28.4]} 18.
Qxa4 {[%clk 0:01:56.7]} 18... O-O {[%clk 0:01:27.2]} 19. Bxa6 {[%clk 0:01:50.5]}
19... Bd3 {[%clk 0:01:17.5]} 20. Nxe7+ {[%clk 0:01:04.4]} 20... Qxe7 {[%clk
0:01:18.4]} 21. Qc6 {[%clk 0:01:02.7]} 21... Qh4+ {[%clk 0:00:57.2]} 22. Kd2
{[%clk 0:00:19.7]} 22... Bxa6 {[%clk 0:00:50.5]} 23. Rxa6 {[%clk 0:00:19.8]}
23... Qb4+ {[%clk 0:00:50.7]} 24. Kc2 {[%clk 0:00:19.7]} 24... Rac8 {[%clk
0:00:49.9]} 25. Kb1 {[%clk 0:00:17.2]} 25... Rxc6 {[%clk 0:00:48.2]} 26. dxc6
{[%clk 0:00:18.1]} 26... Qb5 {[%clk 0:00:39.3]} 27. Ra3 {[%clk 0:00:18.2]} 27...
Qxc6 {[%clk 0:00:39.1]} 28. Rc1 {[%clk 0:00:19.1]} 28... Qb5 {[%clk 0:00:37]}
29. Rcc3 {[%clk 0:00:17.6]} 29... f5 {[%clk 0:00:33.3]} 30. Rab3 {[%clk
0:00:10.9]} 30... Qf1+ {[%clk 0:00:31.9]} 31. Rc1 {[%clk 0:00:10.7]} 31... Qxg2
{[%clk 0:00:30.1]} 32. Rd3 {[%clk 0:00:10.9]} 32... Qxf3 {[%clk 0:00:26.8]} 33.
Rdc3 {[%clk 0:00:11]} 33... f4 {[%clk 0:00:25.5]} 0-1